bitfinex/quotes_SOLUSD_20251019
["timestamp","ask_amount","ask_price","bid_price","bid_amount"]
[1760887295381,0.69,191.22,191.16,18.30926972]
[1760887295566,0.69,191.22,191.17,26.54]
[1760887295764,0.69,191.22,191.18,26.54]
[1760887295962,10.87647521,191.24,191.19,18.30639676]
[1760887296168,10.87647521,191.25,191.19,18.96639676]
[1760887296459,0.69,191.26,191.19,18.96639676]
[1760887296669,0.69,191.26,191.2,0.66]
[1760887296860,0.69,191.26,191.21,26.54]
[1760887297074,26.54,191.33,191.22,0.66]
[1760887297272,0.69,191.3,191.22,0.66]
[1760887297662,22.88,191.29,191.23,26.54]
[1760887297989,23.57,191.29,191.23,26.54]
[1760887298161,23.57,191.29,191.24,5.22903158]
[1760887298481,0.69,191.28,191.24,18.30161053]
[1760887299471,22.88,191.29,191.24,18.96161053]
[1760887299663,0.69,191.28,191.24,18.30161053]
[1760887300275,22.88,191.29,191.24,18.30161053]
[1760887300477,0.69,191.28,191.25,26.54]
[1760887300676,0.69,191.27,191.25,26.54]
[1760887301673,22.88,191.29,191.25,26.54]
[1760887301876,0.69,191.28,191.26,5.22848478]
[1760887302590,22.88,191.29,191.26,5.22848478]
[1760887302893,0.69,191.28,191.26,5.22848478]
[1760887303084,0.69,191.27,191.26,5.22848478]
[1760887303672,0.69,191.27,191.25,26.54]
[1760887304004,0.71,191.26,191.25,26.54]
[1760887304184,0.71,191.26,191.25,31.76875816]
[1760887304586,33.75647521,191.28,191.25,31.76875816]
[1760887304786,22.88,191.28,191.25,31.76875816]
[1760887305987,23.59,191.28,191.25,31.76875816]
[1760887307498,22.88,191.28,191.25,31.76875816]
[1760887307703,23.59,191.28,191.25,31.76875816]
[1760887307880,22.88,191.28,191.25,31.76875816]
[1760887308080,22.88,191.28,191.25,32.44875816]
[1760887308400,22.88,191.28,191.25,31.76875816]
[1760887308594,23.59,191.28,191.25,31.76875816]
[1760887308771,22.88,191.28,191.26,0.68]
[1760887308970,22.88,191.3,191.27,0.68]
[1760887309177,103.1,191.35,191.27,0.68]
[1760887309394,103.1,191.35,191.29,5.2276648]
[1760887309395,0.71,191.33,191.29,5.2276648]
[1760887309574,0.71,191.33,191.29,31.7676648]
[1760887310374,0.71,191.33,191.29,44.8368268]
[1760887311001,0.71,191.33,191.29,45.5168268]
[1760887312280,10.87647521,191.34,191.29,44.8368268]
[1760887312500,11.58647521,191.34,191.31,5.22711828]
[1760887312905,0.71,191.33,191.31,5.22711828]
[1760887313105,10.87647521,191.34,191.31,5.22711828]
[1760887313497,0.71,191.33,191.31,5.22711828]
[1760887313891,10.87647521,191.34,191.31,5.90711828]
[1760887314081,0.71,191.33,191.31,5.22711828]
[1760887314281,0.71,191.32,191.31,5.22711828]
[1760887314482,0.71,191.32,191.3,5.22739153]
[1760887314782,10.87647521,191.31,191.3,5.22739153]
[1760887314984,23.59,191.31,191.27,31.76821142]
[1760887315216,23.59,191.31,191.27,32.44821142]
[1760887315416,0.71,191.34,191.28,0.68]
[1760887315712,10.87647521,191.33,191.28,0.68]
[1760887315922,10.87647521,191.33,191.29,0.68]
[1760887315923,0.71,191.33,191.29,0.68]
[1760887316729,11.58647521,191.35,191.3,5.22739153]
[1760887316905,10.87647521,191.33,191.3,5.90739153]
[1760887317406,22.88,191.38,191.3,18.29587035]
[1760887317609,10.87647521,191.35,191.31,27.22]
[1760887318309,10.87647521,191.36,191.31,27.22]
[1760887318488,0.71,191.35,191.31,26.54]
[1760887318689,0.71,191.34,191.32,5.22684507]
[1760887319697,11.58647521,191.36,191.32,5.22684507]
[1760887320014,0.71,191.35,191.32,5.22684507]
[1760887320209,10.87647521,191.36,191.32,5.22684507]
[1760887320419,10.87647521,191.35,191.32,5.90684507]
[1760887320618,10.87647521,191.35,191.33,0.68]
[1760887320785,10.87647521,191.36,191.32,5.22684507]
[1760887320991,10.87647521,191.36,191.33,0.68]
[1760887321692,11.58647521,191.36,191.33,26.54]
[1760887321892,0.71,191.41,191.34,0.68]
[1760887322521,22.88,191.39,191.34,0.68]
[1760887322905,22.88,191.39,191.35,0.68]
[1760887323319,23.59,191.39,191.35,0.68]
[1760887323515,22.88,191.39,191.36,27.22]
[1760887323718,33.75647521,191.42,191.37,0.68]
[1760887323920,0.71,191.41,191.34,18.29204556]
[1760887324101,10.87647521,191.38,191.32,31.76684507]
[1760887324306,10.87647521,191.34,191.32,5.22684507]
[1760887324604,0.71,191.33,191.32,5.22684507]
[1760887324805,10.87647521,191.32,191.29,5.2276648]
[1760887325112,0.71,191.32,191.29,5.2276648]
[1760887325338,33.75647521,191.34,191.3,0.68]
[1760887326133,10.87647521,191.32,191.29,18.2968268]
[1760887326547,10.87647521,191.36,191.3,0.68]
[1760887326833,0.71,191.36,191.31,5.22711828]
[1760887327031,10.87647521,191.34,191.31,5.22711828]
[1760887327342,10.87647521,191.34,191.3,5.22735325]
[1760887327529,10.87647521,191.32,191.3,5.22735325]
[1760887328527,10.87647521,191.32,191.29,5.22753336]
[1760887329135,10.87647521,191.32,191.29,5.90753336]
[1760887330229,10.87647521,191.3,191.24,13.75207383]
[1760887330464,0.71,191.29,191.25,5.22875816]
[1760887330960,10.87647521,191.3,191.26,0.68]
[1760887331119,10.87647521,191.3,191.25,5.22875816]
[1760887331120,22.88,191.34,191.27,0.68]
[1760887331320,10.87647521,191.33,191.27,0.68]
[1760887331535,11.55647521,191.33,191.25,18.30065358]
[1760887331822,10.87647521,191.29,191.25,5.22875816]
[1760887332134,22.88,191.26,191.23,5.22906434]
[1760887332340,22.88,191.26,191.24,0.69]
[1760887333052,11.55647521,191.29,191.24,0.69]
[1760887333242,10.87647521,191.27,191.24,0.69]
[1760887333640,10.87647521,191.27,191.23,31.76906434]
[1760887333840,11.55647521,191.27,191.23,5.94906434]
[1760887334222,0.66,191.26,191.23,5.22906434]
[1760887334423,10.87647521,191.27,191.23,5.94906434]
[1760887334625,11.53647521,191.27,191.23,5.94906434]
[1760887335159,10.87647521,191.27,191.23,5.22906434]
[1760887335338,0.66,191.3,191.24,0.72]
[1760887335549,10.87647521,191.3,191.24,0.72]
[1760887336086,0.66,191.29,191.24,0.72]
[1760887336247,10.87647521,191.3,191.25,5.22875816]
[1760887336582,10.87647521,191.3,191.26,0.72]
[1760887337871,10.87647521,191.3,191.27,0.72]
[1760887338077,10.87647521,191.3,191.28,0.72]
[1760887338249,0.66,191.33,191.29,5.2276648]
[1760887338454,10.87647521,191.32,191.29,5.2276648]
[1760887338973,10.87647521,191.32,191.29,5.9476648]
[1760887340167,10.87647521,191.32,191.3,0.72]
[1760887340349,10.87647521,191.32,191.28,18.29778335]
[1760887340546,10.87647521,191.32,191.29,0.72]
[1760887342072,10.87647521,191.32,191.3,5.22713632]
[1760887344151,10.87647521,191.32,191.28,19.01778335]
[1760887344376,10.87647521,191.32,191.29,0.72]
[1760887344965,10.87647521,191.32,191.28,44.83778335]
[1760887345164,10.87647521,191.32,191.29,0.72]
[1760887345974,10.87647521,191.32,191.3,5.22739153]
[1760887346973,10.87647521,191.32,191.31,0.72]
[1760887347874,10.87647521,191.32,191.3,5.22739153]
[1760887348174,10.87647521,191.32,191.3,0.72]
[1760887350384,10.87647521,191.32,191.31,5.22711828]
[1760887352275,0.66,191.35,191.31,5.22711828]
[1760887352585,11.53647521,191.34,191.31,5.22711828]
[1760887353086,10.87647521,191.35,191.32,0.72]
[1760887353696,0.66,191.34,191.31,5.22711828]
[1760887354190,10.87647521,191.35,191.31,5.94711828]
[1760887354390,11.53647521,191.35,191.31,5.94711828]
[1760887356167,0.66,191.34,191.3,13.78833371]
[1760887356383,10.87647521,191.35,191.31,0.72]
[1760887356586,11.53647521,191.35,191.31,0.72]
[1760887357789,11.53647521,191.35,191.29,5.2276648]
[1760887357992,0.66,191.34,191.29,31.7676648]
[1760887358202,10.87647521,191.32,191.29,31.7676648]
[1760887358490,128.71233437,191.36,191.25,26.54]
[1760887358491,10.87647521,191.3,191.25,26.54]
[1760887358674,33.75647521,191.32,191.25,26.54]
[1760887358882,0.66,191.3,191.25,27.26]
[1760887359073,0.66,191.3,191.26,0.72]
[1760887360301,34.41647521,191.32,191.27,5.94821142]
[1760887360605,0.66,191.31,191.27,5.94821142]
[1760887360774,33.75647521,191.32,191.27,5.94821142]
[1760887360975,0.66,191.31,191.27,5.94821142]
[1760887361169,0.66,191.3,191.27,5.22821142]
[1760887361592,0.66,191.3,191.25,40.33170579]
[1760887361593,0.66,191.3,191.26,18.29969674]
[1760887361897,0.66,191.3,191.26,19.01969674]
[1760887363098,0.66,191.3,191.26,18.29969674]
[1760887363277,0.66,191.3,191.26,19.01969674]
[1760887364407,33.75647521,191.32,191.26,18.29969674]
[1760887364573,33.75647521,191.32,191.27,0.72]
[1760887364897,0.66,191.31,191.26,19.01969674]
[1760887365573,0.66,191.3,191.26,19.01969674]
[1760887365775,33.75647521,191.28,191.22,0.72]
[1760887366097,33.75647521,191.28,191.22,27.26]
[1760887366285,34.41647521,191.28,191.23,0.72]
[1760887366488,34.41647521,191.28,191.24,5.22903158]
[1760887366806,34.41647521,191.28,191.24,5.94903158]
[1760887371202,0.71,191.28,191.24,5.94903158]
[1760887373811,33.75647521,191.3,191.24,5.94903158]
[1760887374017,10.87647521,191.28,191.24,5.94903158]
[1760887374416,11.58647521,191.28,191.24,5.94903158]
[1760887375015,10.87647521,191.26,191.2,5.90995963]
[1760887375312,10.87647521,191.24,191.2,18.98527343]
[1760887375512,0.71,191.27,191.21,0.68]
[1760887375716,10.87647521,191.26,191.21,0.68]
[1760887375911,10.87647521,191.26,191.2,18.30527343]
[1760887376119,10.87647521,191.26,191.21,0.68]
[1760887376296,10.87647521,191.26,191.22,0.68]
[1760887376497,0.71,191.25,191.2,18.98527343]
[1760887376821,0.71,191.25,191.21,0.68]
[1760887377007,0.71,191.25,191.22,0.68]
[1760887377314,10.87647521,191.26,191.22,0.68]
[1760887377515,11.58647521,191.26,191.22,0.68]
[1760887377724,11.58647521,191.26,191.23,5.22930502]
[1760887380718,22.88,191.29,191.24,0.68]
[1760887381010,11.58647521,191.28,191.22,0.68]
[1760887382817,11.58647521,191.28,191.23,5.22930502]
[1760887383016,10.87647521,191.26,191.23,5.22930502]
[1760887383402,11.58647521,191.26,191.23,5.22930502]
[1760887384122,0.71,191.25,191.21,0.68]
[1760887384339,16.10429618,191.29,191.22,0.68]
[1760887384504,10.87647521,191.27,191.22,0.68]
[1760887384930,0.71,191.26,191.22,0.68]
[1760887385100,0.71,191.26,191.23,5.22930502]
[1760887387420,10.87647521,191.28,191.23,5.90930502]
[1760887387605,0.71,191.27,191.23,5.90930502]
[1760887387806,0.71,191.26,191.23,5.90930502]
[1760887388110,10.87647521,191.29,191.23,5.90930502]
[1760887388315,0.71,191.28,191.23,5.90930502]
[1760887388523,0.71,191.27,191.23,5.90930502]
[1760887389530,0.71,191.27,191.21,18.30433009]
[1760887389734,0.71,191.27,191.22,0.68]
[1760887390028,0.71,191.27,191.23,0.68]
[1760887390638,0.71,191.28,191.25,5.22875816]
[1760887391010,0.66,191.27,191.25,5.22875816]
[1760887391606,0.66,191.27,191.23,5.22930502]
[1760887391815,0.66,191.27,191.23,5.89930502]
[1760887392328,11.53647521,191.29,191.24,0.67]
[1760887392624,0.66,191.28,191.24,0.67]
[1760887392806,0.66,191.27,191.25,5.22875816]
[1760887393321,11.53647521,191.29,191.25,5.22875816]
[1760887393534,11.53647521,191.29,191.25,5.89875816]
[1760887393701,22.88,191.27,191.26,0.67]
[1760887393904,22.88,191.27,191.25,5.22875816]
[1760887394319,11.54647521,191.26,191.25,5.22875816]
[1760887394513,10.87647521,191.26,191.25,5.22875816]
[1760887394828,10.87647521,191.26,191.24,5.22903158]
[1760887395323,10.87647521,191.26,191.24,5.89903158]
[1760887397025,10.87647521,191.26,191.21,18.30448197]
[1760887397223,10.87647521,191.26,191.22,0.67]
[1760887397437,10.87647521,191.26,191.23,0.67]
[1760887398131,10.87647521,191.26,191.24,5.22903158]
[1760887399023,10.87647521,191.26,191.25,0.67]
[1760887399415,10.87647521,191.26,191.24,5.22903158]
[1760887399612,10.87647521,191.26,191.24,5.89903158]
[1760887400023,10.87647521,191.26,191.24,5.22903158]
[1760887400225,11.54647521,191.25,191.19,13.07542001]
[1760887400548,10.87647521,191.23,191.19,5.23039907]
[1760887401025,10.87647521,191.21,191.19,5.23039907]
[1760887401441,10.87647521,191.24,191.19,5.23039907]
[1760887401746,0.67,191.23,191.19,5.23039907]
[1760887401920,10.87647521,191.21,191.19,5.23039907]
[1760887402129,10.87647521,191.21,191.19,5.90039907]
[1760887403953,10.87647521,191.21,191.16,18.30871841]
[1760887404152,10.87647521,191.21,191.17,0.67]
[1760887404344,10.87647521,191.21,191.18,0.67]
[1760887405058,10.87647521,191.21,191.16,18.30871841]
[1760887405236,10.87647521,191.21,191.18,5.23067266]
[1760887405651,10.87647521,191.21,191.18,18.30735432]
[1760887405824,10.87647521,191.21,191.19,0.67]
[1760887406873,10.87647521,191.21,191.18,18.30735432]
[1760887407054,10.87647521,191.21,191.18,18.97735432]
[1760887407663,0.67,191.21,191.18,18.30735432]
[1760887408149,0.67,191.2,191.18,5.23067266]
[1760887408330,0.67,191.19,191.18,5.23067266]
[1760887408737,10.87647521,191.19,191.18,5.23067266]
[1760887409549,10.87647521,191.19,191.17,5.23094627]
[1760887410549,10.87647521,191.19,191.17,5.90094627]
[1760887413464,11.54647521,191.18,191.12,13.75021552]
[1760887413761,0.67,191.17,191.12,13.75021552]
[1760887413965,0.67,191.17,191.13,0.67]
[1760887415648,0.67,191.17,191.14,5.23176729]
[1760887417235,0.67,191.17,191.14,18.31118551]
[1760887417436,0.67,191.17,191.14,18.98118551]
[1760887418274,10.87647521,191.2,191.14,18.98118551]
[1760887418457,0.67,191.19,191.14,18.98118551]
[1760887418764,0.67,191.18,191.14,18.98118551]
[1760887419475,0.67,191.18,191.15,0.67]
[1760887419646,10.87647521,191.2,191.15,0.67]
[1760887419971,11.54647521,191.2,191.16,0.67]
[1760887420175,0.67,191.19,191.16,0.67]
[1760887421375,0.67,191.19,191.17,5.23094627]
[1760887421553,10.87647521,191.2,191.17,5.90094627]
[1760887422167,11.54647521,191.2,191.17,5.90094627]
[1760887423053,10.87647521,191.2,191.18,0.67]
[1760887423761,10.87647521,191.2,191.16,0.67]
[1760887424069,11.56647521,191.2,191.16,0.67]
[1760887424267,0.69,191.19,191.16,0.67]
[1760887424657,0.69,191.18,191.14,27.2]
[1760887424857,10.87647521,191.2,191.16,5.23121992]
[1760887425175,11.56647521,191.2,191.17,0.66]
[1760887425772,10.87647521,191.2,191.17,0.66]
[1760887426072,10.87647521,191.2,191.18,0.66]
[1760887426573,10.87647521,191.2,191.16,5.23121992]
[1760887426752,10.87647521,191.2,191.17,0.66]
[1760887427153,10.87647521,191.2,191.18,5.23067266]
[1760887427348,10.87647521,191.2,191.18,5.89067266]
[1760887427654,0.69,191.19,191.16,0.66]
[1760887428062,0.69,191.19,191.15,5.23149359]
[1760887428376,10.87647521,191.2,191.15,5.89149359]
[1760887428562,0.69,191.19,191.15,5.89149359]
[1760887429154,0.69,191.19,191.15,5.23149359]
[1760887429655,0.69,191.19,191.17,5.23094627]
[1760887430783,10.87647521,191.2,191.14,26.54]
[1760887430962,25.61438391,191.21,191.13,27.2]
[1760887430963,0.69,191.18,191.13,27.2]
[1760887431164,10.87647521,191.16,191.14,0.66]
[1760887432185,0.69,191.18,191.15,5.23149359]
[1760887432368,11.56647521,191.2,191.16,0.66]
[1760887432570,10.87647521,191.2,191.15,5.23149359]
[1760887432881,128.71438391,191.21,191.15,5.23149359]
[1760887432882,103.1,191.21,191.17,0.66]
[1760887433056,103.1,191.21,191.18,0.66]
[1760887433973,103.79,191.21,191.16,27.2]
[1760887434180,11.56647521,191.2,191.17,5.89094627]
[1760887434360,10.87647521,191.2,191.17,5.89094627]
[1760887435283,103.1,191.21,191.18,0.66]
[1760887436279,103.1,191.21,191.19,5.23039907]
[1760887436993,10.87647521,191.21,191.19,5.23039907]
[1760887437497,11.56647521,191.21,191.17,18.30831196]
[1760887437800,11.56647521,191.21,191.17,18.96831196]
[1760887438493,10.87647521,191.19,191.17,5.89094627]
[1760887438687,10.87647521,191.19,191.17,5.23094627]
[1760887439069,0.69,191.21,191.17,5.89094627]
[1760887442070,10.87647521,191.19,191.17,5.23094627]
[1760887442386,10.87647521,191.19,191.17,5.89094627]
[1760887442593,11.56647521,191.22,191.17,5.89094627]
[1760887442773,0.69,191.21,191.17,5.89094627]
[1760887442974,10.87647521,191.22,191.17,5.89094627]
[1760887443179,10.87647521,191.19,191.17,5.89094627]
[1760887443904,11.56647521,191.22,191.17,5.23094627]
[1760887444079,0.69,191.21,191.17,5.89094627]
[1760887444697,0.69,191.21,191.18,5.89040774]
[1760887445390,10.87647521,191.23,191.19,0.66]
[1760887445589,10.87647521,191.21,191.18,5.89040774]
[1760887445895,10.87647521,191.19,191.18,5.23040774]
[1760887446097,10.87647521,191.19,191.16,26.54]
[1760887446285,10.87647521,191.17,191.12,0.66]
[1760887446488,0.69,191.16,191.12,0.66]
[1760887446805,10.87647521,191.17,191.1,45.51451149]
[1760887446806,0.69,191.15,191.1,45.51451149]
[1760887447106,0.69,191.15,191.11,0.66]
[1760887447307,0.69,191.14,191.1,44.85451149]
[1760887447515,0.69,191.14,191.1,45.51451149]
[1760887447882,11.56647521,191.16,191.11,0.66]
[1760887448290,0.69,191.19,191.12,0.66]
[1760887448482,10.87647521,191.16,191.12,0.66]
[1760887449811,11.56647521,191.16,191.13,5.23204101]
[1760887450196,11.56647521,191.16,191.12,5.89228493]
[1760887450508,10.87647521,191.14,191.12,5.23228493]
[1760887450688,0.69,191.14,191.12,5.23228493]
[1760887450889,11.54647521,191.16,191.12,5.23228493]
[1760887451091,10.87647521,191.14,191.12,5.23228493]
[1760887451497,10.87647521,191.14,191.11,5.23258856]
[1760887451788,10.87647521,191.14,191.11,5.90258856]
[1760887452402,33.75647521,191.16,191.12,0.67]
[1760887452785,33.75647521,191.16,191.13,0.67]
[1760887453397,34.42647521,191.16,191.13,5.90203787]
[1760887453600,34.42647521,191.16,191.13,5.23203787]
[1760887455602,33.75647521,191.16,191.14,0.69]
[1760887456507,33.75647521,191.16,191.13,5.23203787]
[1760887456713,33.75647521,191.16,191.13,5.92203787]
[1760887457413,10.87647521,191.16,191.13,5.92203787]
[1760887457605,33.75647521,191.16,191.13,5.92203787]
[1760887457907,34.45647521,191.16,191.13,5.92203787]
[1760887459315,34.45647521,191.16,191.11,18.31405996]
[1760887459505,34.45647521,191.16,191.12,0.69]
[1760887459813,34.45647521,191.16,191.11,18.31405996]
[1760887460013,34.45647521,191.16,191.12,0.69]
[1760887461115,0.7,191.15,191.11,18.31405996]
[1760887461302,0.7,191.15,191.11,19.00405996]
[1760887461501,0.7,191.15,191.11,18.31405996]
[1760887461708,33.75647521,191.16,191.13,5.23204101]
[1760887462014,34.45647521,191.16,191.13,5.23204101]
[1760887463213,34.45647521,191.16,191.12,0.69]
[1760887463417,11.57647521,191.16,191.12,0.69]
[1760887463615,34.45647521,191.16,191.12,0.69]
[1760887464198,34.45647521,191.16,191.13,5.23204101]
[1760887465114,34.45647521,191.16,191.13,5.92204101]
[1760887465500,22.88,191.16,191.13,18.31214355]
[1760887465703,23.58,191.16,191.13,5.23204101]
[1760887465898,0.7,191.15,191.13,5.23204101]
[1760887467235,0.7,191.15,191.11,0.69]
[1760887467236,0.7,191.15,191.12,5.23231477]
[1760887467730,0.7,191.15,191.12,5.92231477]
[1760887467894,0.7,191.14,191.12,5.23231477]
[1760887468094,0.7,191.13,191.12,5.23231477]
[1760887468295,0.7,191.13,191.11,5.23254033]
[1760887469330,22.88,191.13,191.12,0.69]
[1760887469690,22.88,191.13,191.11,5.92254033]
[1760887470605,22.88,191.13,191.11,5.23254033]
[1760887470810,22.88,191.13,191.1,5.23286237]
[1760887471005,23.58,191.13,191.1,5.23286237]
[1760887471731,23.58,191.13,191.1,5.92286237]
[1760887471935,11.57647521,191.12,191.1,5.23286237]
[1760887472301,0.7,191.11,191.09,5.43311505]
[1760887473217,10.87647521,191.12,191.09,5.43311505]
[1760887473421,11.57647521,191.12,191.09,5.43311505]
[1760887475928,10.87647521,191.12,191.09,5.43311505]
[1760887476134,11.57647521,191.12,191.09,5.43311505]
[1760887478155,0.7,191.11,191.09,0.2]
[1760887478362,10.87647521,191.1,191.09,0.2]
[1760887478640,11.57647521,191.1,191.09,0.2]
[1760887480536,16.80933758,191.1,191.09,0.2]
[1760887482126,11.57647521,191.1,191.09,0.2]
[1760887482321,10.87647521,191.1,191.09,0.2]
[1760887482523,33.75647521,191.1,191.09,0.2]
[1760887483829,33.75647521,191.1,191.09,0.89]
[1760887484329,33.75647521,191.1,191.09,0.2]
[1760887484538,33.75647521,191.1,191.09,0.9]
[1760887484744,10.87647521,191.12,191.09,0.9]
[1760887485144,11.59647521,191.12,191.09,0.2]
[1760887485742,10.87647521,191.1,191.09,0.2]
[1760887486547,33.75647521,191.1,191.09,0.2]
[1760887498268,34.44647521,191.1,191.09,0.2]
[1760887499147,33.75647521,191.1,191.09,0.2]
[1760887500262,34.44647521,191.1,191.09,0.2]
[1760887501266,33.75647521,191.1,191.09,0.2]
[1760887504400,22.88,191.1,191.09,6.15313621]
[1760887504675,22.88,191.1,191.09,0.92]
[1760887504887,22.88,191.1,191.09,0.2]
[1760887505185,34.44647521,191.1,191.09,0.2]
[1760887508778,16.79933758,191.1,191.09,0.2]
[1760887509073,22.23351828,191.1,191.09,0.2]
[1760887510274,48.75351828,191.1,191.09,0.2]
[1760887510866,55.92719669,191.1,191.09,0.2]
[1760887516154,29.40719669,191.1,191.09,0.2]
[1760887516360,21.54351828,191.1,191.09,0.2]
[1760887516559,21.54351828,191.1,191.07,0.7]
[1760887516560,61.48998608,191.1,190.98,2.29880105]
[1760887516757,33.75647521,190.99,190.98,1e-08]
[1760887517080,33.75647521,190.95,190.89,0.9]
[1760887517258,60.55647521,190.95,190.89,0.9]
[1760887517467,77.26753803,190.95,190.89,0.9]
[1760887517665,81.57331411,190.95,190.89,0.9]
[1760887518068,88.91096197,190.95,190.89,0.2]
[1760887518261,95.76099222,190.95,190.89,0.2]
[1760887518457,95.76099222,190.95,190.94,1e-08]
[1760887518666,33.75647521,190.92,190.89,0.2]
[1760887518869,66.46897855,190.92,190.89,0.2]
[1760887519094,77.80532384,190.92,190.89,0.2]
[1760887519778,85.24735231,190.92,190.89,0.2]
[1760887521160,63.16514824,190.92,190.89,0.9]
[1760887521360,73.25629961,190.92,190.89,0.9]
[1760887521572,73.25629961,190.92,190.89,0.2]
[1760887521573,65.81427114,190.92,190.89,0.2]
[1760887521778,65.81427114,190.92,190.89,0.9]
[1760887522173,66.33427114,190.92,190.89,0.2]
[1760887522376,74.39327306,190.92,190.89,0.2]
[1760887523073,47.05327306,190.92,190.89,0.2]
[1760887523382,74.39327306,190.92,190.89,0.2]
[1760887524757,73.87327306,190.92,190.89,0.9]
[1760887524960,47.05327306,190.92,190.89,0.2]
[1760887525163,73.87327306,190.92,190.91,0.9]
[1760887525582,73.87327306,190.92,190.91,0.2]
[1760887527065,75.97427891,190.92,190.91,0.2]
[1760887528291,78.71340052,190.92,190.91,0.2]
[1760887530364,79.23340052,190.92,190.91,0.2]
[1760887530566,78.71340052,190.92,190.91,0.2]
[1760887531192,79.23340052,190.92,190.91,0.2]
[1760887531369,71.1743986,190.92,190.91,1e-08]
[1760887531572,71.1743986,190.92,190.86,0.1]
[1760887531573,33.75647521,190.88,190.86,0.1]
[1760887531782,37.67647521,190.87,190.86,0.1]
[1760887532289,10.87647521,190.86,190.85,0.1]
[1760887532462,15.82318201,190.86,190.85,0.1]
[1760887532665,27.19911141,190.86,190.85,0.1]
[1760887532970,27.71911141,190.86,190.85,0.1]
[1760887533171,32.95855393,190.86,190.85,0.1]
[1760887533382,32.43855393,190.86,190.85,0.1]
[1760887534395,2.10144737,190.87,190.85,0.8]
[1760887534565,8.67695678,190.92,190.85,0.1]
[1760887534989,22.88,190.89,190.85,0.1]
[1760887536180,22.88,190.88,190.85,0.1]
[1760887536379,10.87647521,190.87,190.85,5.33958232]
[1760887536579,10.87647521,190.87,190.85,0.1]
[1760887544999,16.11701039,190.87,190.85,0.1]
[1760887545882,10.87647521,190.87,190.85,0.1]
[1760887546398,2.73912161,190.92,190.85,5.3396859]
[1760887546607,2.73912161,190.92,190.85,18.43897853]
[1760887546774,10.87647521,190.91,190.85,18.43897853]
[1760887549517,2.73912161,190.92,190.85,18.43897853]
[1760887549705,10.87647521,190.98,190.85,18.43897853]
[1760887549903,2.73785123,190.98,190.85,41.31897853]
[1760887550096,10.87647521,190.97,190.85,41.31897853]
[1760887550680,10.87647521,190.97,190.85,62.2778779]
[1760887551604,10.87647521,190.97,190.86,26.82]
[1760887551797,10.87647521,190.97,190.87,18.33708807]
[1760887552003,10.87647521,190.97,190.87,44.53292817]
[1760887552205,0.68,191.02,190.87,44.53292817]
[1760887552394,10.87647521,191.01,190.87,44.53292817]
[1760887552702,34.43647521,191.01,190.87,44.53292817]
[1760887553207,34.43647521,191.01,190.88,15.74596509]
[1760887553613,11.55647521,191.01,190.88,15.74596509]
[1760887553908,22.88,191.0,190.89,44.52826235]
[1760887554109,10.87647521,190.99,190.89,44.52826235]
[1760887555012,10.87647521,190.99,190.9,15.74596509]
[1760887556389,10.87647521,190.99,190.91,18.33324602]
[1760887557020,10.87647521,190.99,190.92,15.74596509]
[1760887557407,10.87647521,190.99,190.93,18.33132561]
[1760887559594,22.88,191.0,190.93,18.33132561]
[1760887559796,10.87647521,191.0,190.93,18.33132561]
[1760887560809,11.55647521,191.0,190.93,18.33132561]
[1760887561814,10.87647521,191.01,190.93,18.33132561]
[1760887562604,22.88,191.02,190.93,18.33132561]
[1760887562999,22.88,191.02,190.93,44.51893363]
[1760887566719,23.56,191.02,190.93,44.51893363]
[1760887567115,11.55647521,191.01,190.93,44.51893363]
[1760887567298,0.68,191.0,190.94,26.74]
[1760887569524,0.68,191.0,190.95,18.32940559]
[1760887570532,10.87647521,191.04,190.95,18.32940559]
[1760887570533,0.68,191.01,190.95,18.32940559]
[1760887583126,10.87647521,191.04,190.95,44.51427073]
[1760887583127,0.65,191.03,190.95,44.51427073]